Cogmind - Beta 13 @@@ ROGUE MODE // 2024.04.19 @ 15:20:49 Player: Wesmed Result: Self-destructed Performance ------------- Evolutions (2) 1000 Regions Visited (6) 1200 Robots Destroyed (43) 215 Value Destroyed (1077) 1077 Prototype IDs (6) 120 Alien Tech Used (0) 0 Bonus (300) 300 TOTAL SCORE: 3912 Bonus ------- Aligned with FarCom 300 Cogmind --------- Core Integrity 450/550 Matter 280/300 Energy 137/275 System Corruption 0% Temperature Cool (-100) Movement Walking (265) Ox2 Location -8/Materials Parts ------- > --- POWER (1) -------- Deuterium Engine > --- PROPULSION (2) --- Carbon-fiber Leg VSS Leg > --- UTILITY (6) ------ Cryofiber Web High-capacity Storage Unit Weight Redist. System Trap Scanner Hardened Medium Armor Plating > --- WEAPON (2) ------- Cooled Pulse Rifle Cooled Pulse Rifle > --- INVENTORY (20) --- Light Nuclear Core Aluminum Leg Aluminum Leg Aluminum Leg Carbon-fiber Leg Carbon-fiber Leg Titanium Leg Superbattery (1500) Shock Absorption System Shock Absorption System Army-in-a-Box (30/30) Cooled Pulse Rifle Rocket Launcher Mace Peak State ------------ > --- POWER ------------ Light Ion Engine > --- PROPULSION ------- Carbon-fiber Leg Carbon-fiber Leg > --- UTILITY ---------- Army-in-a-Box > --- WEAPON ----------- Cooled Pulse Rifle Light Cannon > --- INVENTORY -------- (None) [Rating: 67] Favorites ----------- Power Light Nuclear Core Engine Deuterium Engine Power Core Light Nuclear Core Propulsion Carbon-fiber Leg Leg Carbon-fiber Leg Utility High-capacity Storage Unit Device Heat Sink Storage High-capacity Storage Unit Processor Signal Interpreter Protection Hardened Medium Armor Plating Weapon Assault Rifle Energy Gun Cooled Pulse Rifle Ballistic Gun Assault Rifle Ballistic Cannon Light Cannon Impact Weapon Mace Build | -11 -10 -9 -9 -9 -8 -8 ------- Run | Yrd Mat Mat Min Exi Min Mat Slots Evolved 4 | . . 2 . . . 2 Power . | . . . . . . . Propulsion . | . . . . . . . Utility 4 | . . 2 . . . 2 Weapon . | . . . . . . . Parts Attached 52 | 8 2 4 5 5 9 19 Power 7 | 1 . 1 . . 3 2 Engine 6 | 1 . . . . 3 2 Core 1 | . . 1 . . . . Reactor . | . . . . . . . Propulsion 10 | 2 . 1 1 . 4 2 Treads . | . . . . . . . Leg 10 | 2 . 1 1 . 4 2 Wheel . | . . . . . . . Hover . | . . . . . . . Flight . | . . . . . . . Utility 26 | 2 2 2 3 3 1 13 Device 18 | 1 1 1 3 1 1 10 Storage 5 | 1 . . . 2 . 2 Processor 1 | . 1 . . . . . Hackware . | . . . . . . . Protection 2 | . . 1 . . . 1 Artifact . | . . . . . . . Weapon 9 | 3 . . 1 2 1 2 Energy Gun 4 | 1 . . 1 . . 2 Energy Cannon . | . . . . . . . Ballistic Gun 3 | 2 . . . 1 . . Ballistic Cannon 1 | . . . . . 1 . Launcher . | . . . . . . . Special Weapon . | . . . . . . . Impact Weapon 1 | . . . . 1 . . Slashing Weapon . | . . . . . . . Piercing Weapon . | . . . . . . . Special Melee Weapon . | . . . . . . . Unidentified Prototypes 4 | . . . . 2 . 2 Parts Lost 7 | . . 1 . . 3 3 Power 4 | . . 1 . . 2 1 Propulsion . | . . . . . . . Utility 1 | . . . . . . 1 Weapon 2 | . . . . . 1 1 Highest Loss Streak 2 | . . 1 . . 1 2 To Critical Strikes . | . . . . . . . Average Slot Usage (%) 96 | . 100 98 100 99 96 92 Engine 5 | . 14 6 . . 7 8 Core 4 | . . 2 11 11 1 . Leg 20 | . 28 22 22 22 22 18 Device 24 | . 14 11 18 21 22 30 Storage 11 | . 14 11 11 11 11 11 Processor 5 | . . 11 11 11 11 . Protection 2 | . . 11 3 . . 5 Energy Gun 10 | . 14 11 11 11 11 9 Ballistic Gun 5 | . 14 11 11 10 6 . Ballistic Cannon 4 | . . . . . 3 8 Naked Turns . | . . . . . . . Heaviest Build 70 | 15 15 18 18 52 55 70 Greatest Support 36 | 20 20 23 23 23 32 36 Greatest Overweight (x) 3 | 3 . . . 2 2 2 Average Overweight (x) . | . . . . 1 1 1 Largest Inventory Capacity 20 | 8 8 8 8 20 20 20 Average Capacity 17 | 7 8 8 8 17 20 19 Most Carried 20 | 6 8 8 8 17 20 20 Average Carried 14 | 4 7 7 7 9 17 19 Final Capacity 20 | 8 8 8 8 20 20 20 Final Carried 20 | 6 8 8 8 16 20 19 Class Distribution -------------------- 46% | Mutant 42% | Scavenger-Mutant 10% | Skirmisher Dominant Class ---------------- Mutant | -10/Materials Mutant | -9/Materials Scavenger-Mutant | -9/Mines Scavenger-Mutant | -9/Exiles Scavenger-Mutant | -8/Mines Mutant | -8/Materials Resources | -11 -10 -9 -9 -9 -8 -8 ----------- Run | Yrd Mat Mat Min Exi Min Mat Matter Collected 1119 | 319 73 72 80 . 218 357 Remotely . | . . . . . . . Salvage Created 1509 | 89 207 137 157 . 230 689 Parts 91 | 12 18 5 13 . 13 30 Haulers Intercepted . | . . . . . . . Recyclers Shooed 4 | . . 1 . . . 3 Parts Field Recycled . | . . . . . . . Retrieved Matter . | . . . . . . . Parts Self-Destructed . | . . . . . . . Prevented . | . . . . . . . Kills | -11 -10 -9 -9 -9 -8 -8 ------- Run | Yrd Mat Mat Min Exi Min Mat Combat Hostiles Destroyed 27 | . 6 1 3 . 4 13 Guns 19 | . 6 1 3 . 3 6 Cannons 8 | . . . . . 1 7 Classes Destroyed 10 | 2 3 1 1 . 1 2 Worker 3 | 1 1 . . . . 1 Builder 2 | . . . 1 . . 1 Tunneler 5 | 5 . . . . . . Recycler 5 | . . 1 . . 1 3 Watcher 1 | . 1 . . . . . Swarmer 7 | . 3 . . . . 4 Grunt 15 | . 3 1 3 . 3 5 Sentry 3 | . . . . . . 3 Specialist 1 | . . . . . . 1 Hunter 1 | . . . . . 1 . Best Kill Streak 5 | 5 3 2 3 . 4 4 Combat Bots Only 4 | . 3 1 3 . 3 4 Max Kills in Single Turn 2 | 1 1 1 1 . 1 2 Gunslinging 1 | . . . . . . 1 Exploded . | . . . . . . . Melee . | . . . . . . . Uniques/NPCs Destroyed . | . . . . . . . Combat | -11 -10 -9 -9 -9 -8 -8 -------- Run | Yrd Mat Mat Min Exi Min Mat Hostile Shots Fired 170 | . 23 10 8 . 43 86 Missed 53 | . 5 1 2 . 13 32 Damage Taken 1605 | . 185 143 97 . 468 712 Core 231 | . 39 14 18 . 60 100 Absorbed by Shields . | . . . . . . . Core Remaining (%) 87 | 100 84 . . . 77 . Volleys Fired 133 | 13 21 9 10 . 23 57 Largest 2 | 2 2 2 2 . 2 2 Hottest 100 | 70 70 70 70 . 100 55 Shots Fired 266 | 26 42 18 20 . 46 114 Gun 200 | 26 42 18 20 . 32 62 Cannon 66 | . . . . . 14 52 Launcher . | . . . . . . . Special . | . . . . . . . Kinetic 128 | 13 21 9 10 . 23 52 Thermal 138 | 13 21 9 10 . 23 62 Explosive . | . . . . . . . Electromagnetic . | . . . . . . . Robot Hit Streak 8 | 6 6 5 6 . 8 8 Robot Miss Streak 4 | 2 2 1 3 . 4 4 Penetration Max . | . . . . . . . Secondary Targets 1 | . . . . . . 1 Max Gunslinging Chain 1 | . . . . . . 1 Shots Hit Robots 167 | 16 24 13 13 . 28 73 Core Hits 71 | 6 11 6 8 . 12 28 Critical Kills . | . . . . . . . Critical Parts Destroyed . | . . . . . . . Critical Strikes 6 | 2 . . . . . 4 Burn 4 | 2 . . . . . 2 Blast 2 | . . . . . . 2 Melee Attacks 3 | . . . . 3 . . Impact 3 | . . . . 3 . . Slashing . | . . . . . . . Piercing . | . . . . . . . Sneak Attacks . | . . . . . . . Combat Hostiles . | . . . . . . . Follow-up Attacks . | . . . . . . . Damage Inflicted 2687 | 214 324 173 159 . 424 1393 Guns 1947 | 214 324 173 159 . 282 795 Cannons 731 | . . . . . 142 589 Explosions . | . . . . . . . Melee . | . . . . . . . Ramming 9 | . . . . . . 9 Kinetic 1169 | 101 135 74 73 . 197 589 Thermal 1509 | 113 189 99 86 . 227 795 Explosive . | . . . . . . . Electromagnetic . | . . . . . . . Impact . | . . . . . . . Slashing . | . . . . . . . Piercing . | . . . . . . . Highest Corruption . | . . . . . . . Average Corruption . | . . . . . . . Corruption Purged . | . . . . . . . Corruption Blocked . | . . . . . . . Overload Shots . | . . . . . . . Overflow Damage 4 | . . . . . . 4 Projectiles 4 | . . . . . . 4 Explosions . | . . . . . . . Melee . | . . . . . . . Knockbacks 9 | . . . . . 5 4 Impact . | . . . . . . . Kinetic 9 | . . . . . 5 4 Secondary . | . . . . . . . Self-Inflicted Damage . | . . . . . . . Shots . | . . . . . . . Rammed . | . . . . . . . Targets Rammed 2 | . . . . . . 2 Kicked 2 | . . . . . . 2 Crushed . | . . . . . . . Highest Temperature 136 | 45 136 98 93 . 102 7 Average Temperature 40 | 16 48 61 41 . 44 4 Received Heat Transfer 516 | . 78 81 51 . 126 180 Siege Activations . | . . . . . . . Robots Corrupted . | . . . . . . . Combat Hostiles . | . . . . . . . Parts Fried . | . . . . . . . Impact Corruptions . | . . . . . . . Robots Melted . | . . . . . . . Combat Hostiles . | . . . . . . . Parts Melted 3 | 1 2 . . . . . Heat Transferred 3848 | 481 555 296 259 . 555 1702 Parts Sabotaged . | . . . . . . . Parts Stolen . | . . . . . . . Parts Stripped . | . . . . . . . Power Chain Reactions . | . . . . . . . Alert | -11 -10 -9 -9 -9 -8 -8 ------- Run | Yrd Mat Mat Min Exi Min Mat Peak Influence 279 | 30 189 134 127 . 115 279 Initial 79 | . 19 79 52 . . 44 Average 51 | 12 70 96 85 . 47 45 Maximum Alert Level 1 | . . . . . . 1 Low Security (%) 95 | 100 100 100 100 . 100 93 Level 1 4 | . . . . . . 6 Level 2 . | . . . . . . . Level 3 . | . . . . . . . Level 4 . | . . . . . . . Level 5 . | . . . . . . . High Security . | . . . . . . . Max Security . | . . . . . . . Squads Dispatched 5 | . 1 . . . . 4 Investigation 1 | . . . . . . 1 Extermination . | . . . . . . . Reinforcement 4 | . 1 . . . . 3 Assault . | . . . . . . . Garrison . | . . . . . . . Intercept . | . . . . . . . Searches Triggered . | . . . . . . . Construction Impeded . | . . . . . . . Haulers Reinforced . | . . . . . . . Active Scanning Responses . | . . . . . . . Cargo Convoy Interrupts . | . . . . . . . Stealth | -11 -10 -9 -9 -9 -8 -8 --------- Run | Yrd Mat Mat Min Exi Min Mat Distress Signals 4 | . 2 1 . . . 1 Communications Jammed . | . . . . . . . Distress Signals . | . . . . . . . Times Spotted 46 | . 9 9 3 . 6 19 Peak Tracking Total 6 | . 3 4 3 . 3 6 Tactical Retreats 3 | . . 1 . . 1 1 Traps | -11 -10 -9 -9 -9 -8 -8 ------- Run | Yrd Mat Mat Min Exi Min Mat Traps Triggered 1 | . . . . . . 1 Indirectly . | . . . . . . . Trap Hack Attempts . | . . . . . . . Triggered . | . . . . . . . Disarmed . | . . . . . . . Reprogrammed . | . . . . . . . Reused . | . . . . . . . Traps Extracted . | . . . . . . . Installed . | . . . . . . . Triggered . | . . . . . . . Machines | -11 -10 -9 -9 -9 -8 -8 ---------- Run | Yrd Mat Mat Min Exi Min Mat Machines Disabled 2 | . . . . . . 2 Max in Single Turn 1 | . . . . . . 1 Machines Repaired . | . . . . . . . Machines Dismantled . | . . . . . . . Machines Sabotaged . | . . . . . . . Overloaded Fab Kills . | . . . . . . . Hacking | -11 -10 -9 -9 -9 -8 -8 --------- Run | Yrd Mat Mat Min Exi Min Mat Machines Accessed 9 | . 2 . . 4 . 3 Terminals 5 | . 2 . . . . 3 Fabricators . | . . . . . . . Repair Stations . | . . . . . . . Recycling Units . | . . . . . . . Scanalyzers . | . . . . . . . Garrison Access . | . . . . . . . Total Hacks 55 | . 3 . . 49 . 3 Successful 51 | . 1 . . 49 . 1 Failed 4 | . 2 . . . . 2 Catastrophic . | . . . . . . . Database Lockouts . | . . . . . . . Manual 3 | . . . . 3 . . Terminals 6 | . 3 . . . . 3 Fabricators . | . . . . . . . Repair Stations . | . . . . . . . Recycling Units . | . . . . . . . Scanalyzers . | . . . . . . . Garrison Access . | . . . . . . . Terminal Hacks 51 | . 1 . . 49 . 1 Record 49 | . . . . 49 . . Prototype ID Bank 1 | . . . . . . 1 Maintenance Status 1 | . 1 . . . . . Fabricator Hacks . | . . . . . . . Repair Station Hacks . | . . . . . . . Recycling Unit Hacks . | . . . . . . . Scanalyzer . | . . . . . . . Garrison Access Hacks . | . . . . . . . Unauthorized Hacks . | . . . . . . . Terminals . | . . . . . . . Fabricators . | . . . . . . . Repair Stations . | . . . . . . . Recycling Units . | . . . . . . . Scanalyzers . | . . . . . . . Garrison Access . | . . . . . . . Data Cores Recovered . | . . . . . . . Used . | . . . . . . . Hacking Detections 4 | . 2 . . . . 2 Full Trace Events . | . . . . . . . Feedback Events . | . . . . . . . Feedback Blocked . | . . . . . . . Robot Schematics Acquired . | . . . . . . . Robots Built . | . . . . . . . Authchips . | . . . . . . . Time . | . . . . . . . Total Robot Build Rating . | . . . . . . . Part Schematics Acquired . | . . . . . . . Parts Built . | . . . . . . . Authchips . | . . . . . . . Time . | . . . . . . . Total Part Build Rating . | . . . . . . . Parts Repaired . | . . . . . . . Time . | . . . . . . . Parts Recycled . | . . . . . . . Recycled Matter . | . . . . . . . Retrieved Matter . | . . . . . . . Retrieved Components . | . . . . . . . Parts Scanalyzed . | . . . . . . . Part Schematics Acquired . | . . . . . . . Parts Damaged . | . . . . . . . Bothacking | -11 -10 -9 -9 -9 -8 -8 ------------ Run | Yrd Mat Mat Min Exi Min Mat Used RIF Installer . | . . . . . . . Robots Hacked . | . . . . . . . Non-combat . | . . . . . . . Combat . | . . . . . . . Robot Hacks Applied . | . . . . . . . Relay Couplers Released . | . . . . . . . Fabnet Peak Effective % . | . . . . . . . Robots Rewired . | . . . . . . . Allies Hacked . | . . . . . . . Hacks Repelled . | . . . . . . . Allies | -11 -10 -9 -9 -9 -8 -8 -------- Run | Yrd Mat Mat Min Exi Min Mat Total Allies . | . . . . . . . Largest Group . | . . . . . . . Highest-Rated Group . | . . . . . . . Highest-Rated Ally . | . . . . . . . Total Orders . | . . . . . . . Ally Attacks . | . . . . . . . Total Damage . | . . . . . . . Kills . | . . . . . . . Allies Corrupted . | . . . . . . . Allies Melted . | . . . . . . . Intel | -11 -10 -9 -9 -9 -8 -8 ------- Run | Yrd Mat Mat Min Exi Min Mat Robot Analysis Total . | . . . . . . . Derelict Logs Recovered 2 | . . . 2 . . . Drone Launches . | . . . . . . . Drone Recoveries . | . . . . . . . Exploration | -11 -10 -9 -9 -9 -8 -8 ------------- Run | Yrd Mat Mat Min Exi Min Mat Turns Passed 5594 | 161 336 186 244 1720 389 2558 Spaces Moved 2347 | 86 211 111 168 830 143 798 Core 12 | 12 . . . . . . Treads . | . . . . . . . Legs 2335 | 74 211 111 168 830 143 798 Wheels . | . . . . . . . Hover . | . . . . . . . Flight . | . . . . . . . Fastest Speed 50 | 50 120 120 120 120 190 120 Average Speed 185 | 122 120 120 120 204 200 208 Slowest Speed 265 | 200 120 120 120 260 260 265 Overloaded Moves . | . . . . . . . Propulsion Burnouts . | . . . . . . . Robots Hopped . | . . . . . . . Cave-ins Triggered . | . . . . . . . Time Travels 1 | . . . . 1 . . Exploration Rate (%) 33 | 4 23 12 46 93 33 22 Regions Visited 6 Branch Regions 3 Pre-discovered Areas 3 | . . . 2 1 . . Known Exits Taken 5 | . 1 1 1 1 1 . Unknown Exits Taken 1 | 1 . . . . . . Scrap Searched 3 | . . . 2 . 1 . Spaces Dug 1 | . . . . 1 . . Terrain Destroyed 1 | . . . . 1 . . Melee 1 | . . . . 1 . . Projectile . | . . . . . . . AOE . | . . . . . . . Terrain Rammed . | . . . . . . . Walls Destroyed . | . . . . . . . Machines Disabled . | . . . . . . . Actions | -11 -10 -9 -9 -9 -8 -8 --------- Run | Yrd Mat Mat Min Exi Min Mat Total 3325 | 111 253 145 193 846 197 1580 Wait 714 | . 11 21 . . 19 663 Move 2341 | 85 210 110 167 829 142 798 Hop . | . . . . . . . Pick Up 44 | 5 5 1 3 5 2 23 Fast Attach 25 | 7 1 1 3 1 2 10 Attach 10 | . . 2 . 1 2 5 Detach 1 | . . . . 1 . . Swap 17 | 1 1 1 2 3 5 4 Drop 35 | . 4 . 8 3 2 18 Fire 133 | 13 21 9 10 . 23 57 Melee 3 | . . . . 3 . . Ram . | . . . . . . . Kick 2 | . . . . . . 2 Crush . | . . . . . . . Escape Stasis . | . . . . . . . Rewire . | . . . . . . . Trap . | . . . . . . . Miscellaneous . | . . . . . . . Route ------- -11/Scrapyard -10/Materials (discovered 2 exits: *Mat / [*Min]) -9/Materials -9/Mines -9/Exiles (discovered 2 exits: *Min x2) -8/Mines -8/Materials History --------- Turn | Location | Event 18 | -11/Scrapyard | Discovered new exit (range 16) 162 | -11/Scrapyard | Entered Materials 181 | -10/Materials | Discovered new exit (range 15) 317 | -10/Materials | Build established: Mutant 386 | -10/Materials | Discovered new exit (range 15) 498 | -10/Materials | Identified exit to Materials 498 | -10/Materials | Entered another Materials area 498 | -9/Materials | Evolved 2 slots: Utility x2 566 | -9/Materials | Discovered new exit (range 15) 666 | -9/Materials | Identified exit to Mines 684 | -9/Materials | Entered Mines 691 | -9/Mines | Received a Rocket Launcher from a helpful Derelict 719 | -9/Mines | Learned location of Storage (-9) 921 | -9/Mines | Deemed a non-threat by the Exiles lab entrance 921 | -9/Mines | Discovered new exit (range 6) 927 | -9/Mines | Identified exit to Exiles 928 | -9/Mines | Entered Exiles 946 | -9/Exiles | Discovered new exit (range 15) 962 | -9/Exiles | Identified exit to Mines 985 | -9/Exiles | Met 8R-AWN 1003 | -9/Exiles | Met EX-HEX 1042 | -9/Exiles | Met EX-BIN 1061 | -9/Exiles | Build established: Scavenger-Mutant 1231 | -9/Exiles | Met EX-DEC 1238 | -9/Exiles | Learned location of Zion (-6) 1291 | -9/Exiles | Discovered exit to Mines (range 12) 1530 | -9/Exiles | Visited The Gauntlet 2289 | -9/Exiles | Aligned with FarCom system 2291 | -9/Exiles | Given EX-Vault access code 2354 | -9/Exiles | Opened EX-Vault 2365 | -9/Exiles | Found Prototype Storage 2365 | -9/Exiles | Identified Superbattery 2385 | -9/Exiles | Found Prototype Device 2386 | -9/Exiles | Identified Chronowheel 2386 | -9/Exiles | Activated Chronowheel 2386 | -9/Exiles | Spacetime reconverged on an earlier point 2394 | -9/Exiles | Found Prototype Device 2453 | -9/Exiles | Warned to stay clear of 0b10 Research branches 2648 | -9/Exiles | Stole two prototypes: Superbattery, Army-in-a-Box 2648 | -9/Exiles | Entered Mines 2830 | -8/Mines | Discovered new exit (range 12) 3035 | -8/Mines | Identified exit to Materials 3037 | -8/Mines | Entered Materials 3037 | -8/Materials | Evolved 2 slots: Utility x2 3170 | -8/Materials | Identified Army-in-a-Box 3429 | -8/Materials | Build established: Mutant 5301 | -8/Materials | Build established: Skirmisher 5595 | -8/Materials | Self-destructed Last Messages --------------- 05309_ K-01 Serf collects debris. 05312_ U-05 Engineer lays Concrete. 05318_ Acquired 2 matter. 05319_ U-05 Engineer builds a Door. 05477_ Kicked K-01 Serf. 05482_ Acquired 22 matter. 05495_ R-06 Scavenger collects Lgt. Ion Engine. 05551_ ALERT: Suspicious intruders detected, dispatching Specialist reinforcements to area. 05574_ M-13 Machinist repairs Flight Unit. 05576_ S-10 Pest destroyed. 05579_ Lgt. Cannon destroyed. 05583_ S-10 Pest destroyed. 05583_ Switching to secondary target: S-10 Pest. 05583_ S-10 Pest destroyed. 05584_ Penetrated by Slug. 05587_ Slug penetrates Wall. 05589_ Penetrated by Slug. 05589_ Structural Scanner destroyed. [Achievement: Just Browsing] Map ----- +----------------------------------------------------+ | ?????????????????????????????????????????????????? | | ?????????????????????????????????????????????????? | | ?????????????????????????????????????????????????? | | ?????????????????????????????????????????????????? | | ?????????????????????????????????????????????????? | | ?????????????????????????????????????????????????? | | ?????????????????????????????????????????????????? | | ?????????????????????????????????????????????????? | | ?????????????????????????????????????????????????? | | ?????????????????????????????????????????????????? | | ???????????????????????? ????????????????????????? | | ???????????????????????? ##?????????????????????? | | ???????????????????????? ##?????????????????????? | | ???????????????????????? ?????????????????????? | | ???????????????????????? ??????????????????????? | | ???????????????????????? T ??????????H???????????? | | ???????????????????????? ??????????????????????? | | ??????????????????????? ?????????????????????? | | ???????????????????????##%##?????????????????????? | | ???????????????????????##m##?????????????????????? | | ?????????????????o?????## + ?????????????????????? | | ???????????????????????##w# ?????????????????????? | | ?????????????Y????????? %[+ ?????????????????????? | | ???????????????????????##x# ?????????????????????? | | ???????????????????????##x# ?????????????????????? | | ???????????????????????##@# ?????????????????????? | | ????????????????????? ### ####???????????????????? | | ?????????????????????#### ####???????????????????? | | ?????????????????????## #################????? | | ?????????????????????## #################????? | | ?????????????????????## % % %g ##????? | | ?????????????????????## ###########b ##????? | | ?????????????????????## ########### % ##????? | | ?????????????????????### ############ g ##????? | | ?????????????????????### # ! * ## #####?? | | ??????????????????????## # ## ######? | | ??????????????????????## + ## ###? | | ??????????????????????## # """ """ ## ^ ! ##? | | ??????????????????????## # """ """ ##^^ ###? | | ???????????????######### # """ """ ## ###? | | ???????????????######### # "" """ ##^ ##?? | | ???????????????## !# # ##^ ##?? | | ???????????????## """ # #######+#### ##?? | | ???????????????## """ + ####### #### % =##?? | | ???????????????## """ # ##??## ###% ##?? | | ???????????????## """ # ##??## T ! %##?? | | ???????????????## + ##??## ###+##### ##?? | | ???????????????##########+###??### ##* % ## ##?? | | ???????????????#### ?? ## ##]%! ## ##?? | | ????????????????????? ??## ##=| "" ## ##?? | +----------------------------------------------------+ Best States ------------- Heat Dissipation 55 Energy Generation 14 Energy Capacity 525 Matter Stores 300 Matter Capacity 300 Sight Range 16 Robot Scan Range 14 Terrain Scan Range 14 Terrain Scan Density 10 Additional Mass Support 6 Base Temperature (-) 100 Armor Coverage 225 Resistance: EX 25 Evasion (%) 55 Item Schematics ----------------- None Robot Schematics ------------------ None Fabricated ------------ Nothing Alien Tech Used ----------------- None Achievements -------------- Just Browsing Challenges ------------ None Game ------ Seed EnergyDroneNanoactuators Manual? 0 Play Time 00:58:03 Cumulative 13.2 hours Start 2024.04.19 @ 08:14:03 End 2024.04.19 @ 15:20:49 Sessions 3 Manual Loads 0 Difficulty Rogue Special Mode None Game No. 9 Rogue 1 Adventurer 8 Explorer 0 Win Type - Total 0 Types 0/0/0/0/0/0/0/0/0 Lore% 20 Gallery% 25 Achievement% 18 Wizard Run 0 Options --------- Layout 1 ASCII 0 Keyboard 0 Movement Arrows Keybinds 0 Fullscreen 1 Font 16/SmallcapsGlow Map View 55x38 Zoom Use 0% Tactical HUD 1 Map Filters NONE Filters NONE Steam 1 RUN: 241f50a2-187c-44de-95d9-9428b2160d69